bitfinex-derivatives/quotes_ETHF0:USTF0_20240923
["timestamp","ask_amount","ask_price","bid_price","bid_amount"]
[1727077288028,0.37791,2646.3,2646.0,1.73051639]
[1727077288220,0.37791,2646.3,2646.0,0.7432]
[1727077288422,0.37791,2646.3,2646.0,1.73051639]
[1727077288615,2.07,2646.3,2646.0,0.98731639]
[1727077288818,0.37794,2646.0,2645.8,0.98731639]
[1727077289019,0.37796,2645.9,2645.7,0.3984]
[1727077289215,0.37796,2645.9,2645.7,41.1984]
[1727077289216,0.76706,2645.9,2645.7,41.1984]
[1727077289826,0.76706,2645.9,2645.7,0.3984]
[1727077290023,0.3891,2645.9,2645.7,0.3984]
[1727077290423,0.3891,2645.9,2645.7,41.1984]
[1727077290937,0.3891,2645.9,2645.7,0.3984]
[1727077291140,3.2078,2646.2,2645.7,0.3984]
[1727077291432,0.3779,2646.3,2645.9,3.2078]
[1727077293719,0.37792,2646.2,2645.9,3.2078]
[1727077294739,0.37792,2646.2,2645.8,42.16527639]
[1727077294936,0.37792,2646.2,2645.9,3.2078]
[1727077296335,0.37792,2646.2,2645.8,42.16527639]
[1727077296642,0.37792,2646.2,2645.9,3.2078]
[1727077296937,0.37792,2646.2,2645.8,42.16527639]
[1727077297139,0.37792,2646.2,2645.9,3.2078]
[1727077297636,0.3759,2646.4,2645.9,4.57306639]
[1727077297637,0.37791,2646.3,2645.9,4.57306639]
[1727077297838,0.37791,2646.2,2645.9,4.57306639]
[1727077298423,0.37791,2646.2,2645.9,4.19511639]
[1727077298834,0.37791,2646.2,2645.9,4.57306639]
[1727077299340,0.37791,2646.2,2645.9,4.19511639]
[1727077299535,0.37791,2646.2,2645.9,4.57307639]
[1727077300037,0.37793,2646.2,2645.9,4.19511639]
[1727077300644,0.37793,2646.1,2645.9,4.19511639]
[1727077302145,0.37792,2646.2,2645.9,4.19511639]
[1727077302838,1.32062,2646.4,2645.9,4.19511639]
[1727077303140,1.32062,2646.4,2645.9,3.2078]
[1727077303141,0.37793,2646.1,2645.9,3.2078]
[1727077304844,0.37796,2645.9,2645.8,40.8]
[1727077305233,0.37797,2645.9,2645.7,1.38571639]
[1727077305440,0.37797,2645.9,2645.7,0.3984]
[1727077307353,0.37797,2645.9,2645.7,1.38571639]
[1727077307538,0.3804,2646.1,2645.7,1.38571639]
[1727077307940,0.3804,2646.1,2645.8,3.2078]
[1727077307941,0.75834,2646.1,2645.8,3.2078]
[1727077308448,0.75834,2646.1,2645.8,3.58577]
[1727077308648,2.44792,2646.2,2645.8,3.2078]
[1727077308845,2.44792,2646.2,2645.9,0.3613]
[1727077309448,0.37793,2646.1,2645.9,0.3613]
[1727077310050,2.07,2646.2,2645.8,3.2078]
[1727077310051,0.37796,2645.9,2645.8,3.2078]
[1727077310249,0.3926,2646.0,2645.7,1.38571639]
[1727077310449,0.3841,2645.9,2645.7,0.3984]
[1727077310753,0.76206,2645.9,2645.7,0.3984]
[1727077311858,0.37797,2645.8,2645.7,0.3984]
[1727077312052,0.37799,2645.7,2645.6,40.8]
[1727077312457,0.37798,2645.8,2645.6,40.8]
[1727077313853,0.37799,2645.7,2645.5,0.98731639]
[1727077314161,2.07,2645.6,2645.3,1.74941639]
[1727077314348,0.37804,2645.3,2645.1,4.19511639]
[1727077314549,2.07,2645.4,2645.0,1.74091639]
[1727077314749,0.3804,2645.2,2645.1,40.8]
[1727077314955,0.75846,2645.2,2645.0,0.7536]
[1727077315360,0.37807,2645.1,2645.0,0.3636]
[1727077315653,0.37809,2645.0,2644.6,1.35091639]
[1727077315852,0.37811,2644.9,2644.6,0.3636]
[1727077316051,2.44811,2644.9,2644.7,40.8]
[1727077316254,2.07,2644.9,2644.7,40.8]
[1727077319057,2.44811,2644.9,2644.7,40.8]
[1727077319756,2.44811,2644.9,2644.6,0.3636]
[1727077320065,2.07,2644.9,2644.6,3.94954]
[1727077320256,2.07,2644.9,2644.6,3.5714]
[1727077320456,2.07,2644.9,2644.6,0.3636]
[1727077320661,2.4481,2644.9,2644.6,0.3636]
[1727077320857,2.07,2644.9,2644.6,0.3636]
[1727077321062,2.4481,2644.9,2644.7,3.2078]
[1727077321361,3.7808,2644.8,2644.3,9.60446877]
[1727077321560,2.07,2644.5,2644.3,3.2078]
[1727077321950,2.44816,2644.5,2644.3,3.2078]
[1727077322159,0.37817,2644.4,2644.3,3.2078]
[1727077322360,2.07,2644.5,2644.3,3.2078]
[1727077322559,2.44816,2644.5,2644.3,3.2078]
[1727077323063,0.37817,2644.4,2644.2,3.2078]
[1727077323264,0.3961,2644.3,2644.1,0.382]
[1727077323452,2.4661,2644.3,2644.1,0.382]
[1727077323660,0.3782,2644.2,2644.1,0.382]
[1727077324159,0.37822,2644.1,2643.9,44.0078]
[1727077324360,2.44822,2644.1,2643.9,44.0078]
[1727077324655,2.44822,2644.1,2643.9,40.8]
[1727077324656,0.37823,2644.0,2643.9,40.8]
[1727077324852,0.377,2644.0,2643.7,0.3741]
[1727077325059,0.75523,2644.0,2643.7,0.3741]
[1727077325366,0.75523,2644.0,2643.8,40.8]
[1727077325758,0.75523,2644.0,2643.7,0.3741]
[1727077326158,0.75523,2644.0,2643.7,41.1741]
[1727077326460,0.37824,2643.9,2643.7,41.1741]
[1727077326664,0.37827,2643.7,2643.4,0.98731639]
[1727077326862,0.37831,2643.4,2643.3,3.2078]
[1727077327264,0.37833,2643.3,2643.1,40.8]
[1727077327666,2.4616,2643.5,2643.1,44.0078]
[1727077327870,0.37832,2643.4,2643.1,40.8]
[1727077328166,2.4616,2643.5,2643.1,44.0078]
[1727077328372,2.44836,2643.2,2643.0,0.3666]
[1727077328568,2.44836,2643.2,2642.7,3.58621]
[1727077329358,2.44836,2643.2,2642.7,3.2078]
[1727077329571,2.07,2643.0,2642.7,3.2078]
[1727077330169,2.07,2643.2,2642.8,0.37839]
[1727077330367,2.44834,2643.2,2642.7,3.5862]
[1727077330969,2.44834,2643.2,2642.8,0.3784]
[1727077331272,2.44834,2643.2,2642.7,3.2078]
[1727077331273,0.37836,2643.1,2642.7,3.2078]
[1727077331474,2.07,2643.2,2642.7,3.2078]
[1727077331676,6.26435,2643.2,2642.7,3.58621]
[1727077332268,6.26435,2643.2,2642.7,3.2078]
[1727077332269,5.886,2643.2,2642.7,3.2078]
[1727077332578,0.3784,2642.8,2642.7,3.2078]
[1727077332983,2.4484,2642.8,2642.7,3.2078]
[1727077333275,2.44841,2642.8,2642.6,0.7541]
[1727077333681,2.44841,2642.8,2642.6,44.7619]
[1727077334074,2.44841,2642.8,2642.6,41.5541]
[1727077334773,0.37841,2642.7,2642.6,44.7619]
[1727077334970,0.37841,2642.7,2642.6,44.0078]
[1727077335179,2.82821,2642.8,2642.6,44.0078]
[1727077335770,2.4498,2642.8,2642.6,44.0078]
[1727077336279,2.07,2643.0,2642.7,0.37841]
[1727077336469,2.07,2643.0,2642.7,0.76931]
[1727077336781,2.07,2643.0,2642.9,3.2078]
[1727077339580,2.44837,2643.0,2642.9,3.2078]
[1727077339777,0.37839,2642.9,2642.7,0.3909]
[1727077340280,2.44838,2643.0,2642.7,0.3909]
[1727077340785,2.07,2642.8,2642.7,0.3909]
[1727077341684,2.07,2642.8,2642.7,0.768]
[1727077342187,2.07,2642.8,2642.7,0.3909]
[1727077343488,2.44841,2642.8,2642.6,44.0078]
[1727077344090,2.07,2642.8,2642.6,44.38622]
[1727077344480,2.07,2642.8,2642.7,0.37841]
[1727077344680,2.07,2643.0,2642.6,44.0078]
[1727077345187,2.07,2643.2,2642.9,3.2078]
[1727077345387,2.07,2643.2,2643.0,0.3864]
[1727077345692,2.44835,2643.2,2643.0,0.3864]
[1727077345883,0.37836,2643.1,2643.0,0.3864]
[1727077346684,2.07,2643.2,2642.7,1.12941]
[1727077346685,0.37838,2643.0,2642.7,0.751]
[1727077346884,2.07,2642.8,2642.7,1.1374]
[1727077347188,2.07,2642.8,2642.7,0.7762]
[1727077347390,2.07,2642.8,2642.6,44.0078]
[1727077347699,0.3619,2642.7,2642.6,44.0078]
[1727077348190,2.07,2642.8,2642.6,44.0078]
[1727077348584,2.07,2642.8,2642.7,0.3674]
[1727077350103,2.4484,2642.8,2642.7,0.3674]
[1727077350789,2.07,2642.8,2642.7,0.3674]
[1727077351886,0.3612,2643.2,2642.7,0.74581]
[1727077352197,2.07,2643.1,2642.9,3.58619]
[1727077352399,0.37837,2643.0,2642.9,3.2078]
[1727077352697,2.07,2643.1,2642.8,0.3921]
[1727077352698,2.44837,2643.1,2642.8,0.3921]
[1727077352999,2.07,2643.1,2642.9,3.2078]
[1727077353800,2.44836,2643.1,2642.9,3.2078]
[1727077354188,0.37837,2643.0,2642.9,3.2078]
[1727077354404,0.37837,2643.0,2642.8,0.3921]
[1727077354593,2.07,2642.9,2642.8,0.3921]
[1727077354893,2.07,2642.9,2642.7,0.3674]
[1727077354894,2.44839,2642.9,2642.7,0.3674]
[1727077355593,0.37836,2643.1,2642.7,0.3674]
[1727077355813,0.37837,2643.0,2642.9,3.2078]
[1727077356094,2.07,2642.8,2642.7,0.3674]
[1727077357994,2.07,2642.8,2642.7,0.74581]
[1727077358600,2.07,2642.8,2642.7,3.95361]
[1727077359486,2.07,2643.1,2642.9,0.37837]
[1727077360493,2.07,2643.1,2642.7,3.5752]
[1727077360494,2.44836,2643.1,2642.8,0.37839]
[1727077361298,2.07,2643.1,2643.0,0.37837]
[1727077361498,5.65613,2643.3,2643.0,0.37837]
[1727077361706,0.37834,2643.2,2643.1,0.7581]
[1727077361908,0.37834,2643.2,2643.1,1.1557]
[1727077364207,2.44834,2643.3,2643.1,1.1557]
[1727077364895,0.37834,2643.2,2643.1,1.1557]
[1727077365597,0.37834,2643.2,2643.1,0.7684]
[1727077366308,2.44834,2643.3,2643.1,0.7684]
[1727077366505,2.44834,2643.3,2643.0,3.2078]
[1727077366707,0.37844,2642.5,2642.4,0.98731639]
[1727077366908,0.37846,2642.4,2641.9,4.57363639]
[1727077367107,2.07,2642.0,2641.9,4.57363639]
[1727077367407,2.07,2642.0,2641.9,5.09374244]
[1727077367609,2.07,2642.0,2641.9,4.19511639]
[1727077368109,2.07,2642.2,2642.0,0.37851]
[1727077368307,2.07,2642.2,2642.0,1.74417126]
[1727077368610,2.07,2642.2,2642.1,0.3955]
[1727077369109,2.07,2642.2,2642.1,1.76296126]
[1727077369306,2.07,2642.2,2642.1,2.09208527]
[1727077370209,2.07,2642.2,2642.1,4.09423566]
[1727077370404,2.07,2642.2,2642.1,3.57335181]
[1727077370601,2.07,2642.6,2642.3,0.37847]
[1727077370918,2.07,2642.6,2642.4,1.3684537]
[1727077371208,2.07,2642.6,2642.5,0.9899937]
[1727077371515,2.07,2642.6,2642.5,1.3872937]
[1727077372113,2.07,2642.6,2642.5,0.3973]
[1727077372417,2.07,2642.6,2642.5,2.0955988]
[1727077372605,0.7554,2642.8,2642.5,3.19842534]
[1727077372812,0.7554,2642.8,2642.6,3.18449045]
[1727077373009,0.7554,2642.8,2642.7,1.31978745]
[1727077373512,1.1338,2642.8,2642.7,4.52758745]
[1727077373809,1.1338,2642.8,2642.7,0.99107054]
[1727077374205,1.1338,2642.8,2642.6,5.07941165]
[1727077374416,2.07,2642.7,2642.6,5.07941165]
[1727077374621,2.07,2642.7,2642.6,6.39978696]
[1727077374910,2.07,2642.7,2642.6,6.01438696]
[1727077376410,2.44841,2642.7,2642.6,6.01438696]
[1727077376603,2.44841,2642.7,2642.6,1.32037531]
[1727077377615,2.07,2642.7,2642.6,1.32037531]
[1727077378203,2.07,2642.7,2642.6,2.80658696]
[1727077378415,2.44841,2642.7,2642.6,1.32037531]
[1727077378815,2.44841,2642.7,2642.6,2.80658696]
[1727077378816,2.07,2642.7,2642.6,2.80658696]
[1727077379011,0.7554,2642.8,2642.6,2.80658696]
[1727077379209,0.7554,2642.8,2642.7,1.32037531]
[1727077379403,2.8254,2642.8,2642.7,1.32037531]
[1727077380314,3.2038,2642.8,2642.7,1.32037531]
[1727077380816,3.2038,2642.8,2642.7,0.99136157]
[1727077381419,6.9878,2642.8,2642.7,0.99136157]
[1727077382806,2.8254,2642.8,2642.7,0.99136157]
[1727077383028,3.2038,2642.8,2642.6,1.48621165]
[1727077383406,2.8254,2642.8,2642.6,1.48621165]
[1727077384018,3.2038,2642.8,2642.6,1.48621165]
[1727077384220,2.8254,2642.8,2642.6,1.48621165]
[1727077384420,2.8254,2642.8,2642.7,1.32043911]
[1727077385122,2.07,2642.8,2642.7,1.32043911]
[1727077385320,2.07,2642.8,2642.7,1.68543911]
[1727077387220,2.07,2642.8,2642.7,1.6854254]
[1727077387409,2.07,2642.8,2642.7,3.17163705]
[1727077387610,2.07,2642.8,2642.7,1.6854254]
[1727077388116,2.4484,2642.8,2642.7,1.6854254]
[1727077389221,2.07,2642.8,2642.7,1.6854254]
[1727077389421,2.07,2642.8,2642.7,3.17163705]
[1727077390813,2.4484,2642.8,2642.7,1.6854254]
[1727077392015,2.4484,2642.8,2642.7,1.68547388]
[1727077392619,2.07,2642.8,2642.7,1.68547388]
[1727077393429,2.4484,2642.8,2642.7,1.68547388]
[1727077393822,2.07,2642.8,2642.7,1.68547388]
[1727077394031,2.07,2642.8,2642.7,2.06388388]
[1727077394225,3.94409923,2643.3,2642.7,12.95568553]
[1727077394420,12.64749835,2643.7,2642.7,12.95568553]
[1727077394421,3.94409923,2643.7,2643.6,0.37829]
[1727077394621,3.22872,2644.1,2643.7,0.37826]
[1727077394825,3.22872,2644.1,2643.9,0.99097443]
[1727077394826,0.37823,2644.0,2643.9,0.99097443]
[1727077395138,0.37824,2643.9,2643.8,0.99097443]
[1727077395430,2.44824,2643.9,2643.8,0.99097443]
[1727077396118,2.44824,2643.9,2643.7,0.99097443]
[1727077396324,2.44824,2643.9,2643.3,0.99097443]
[1727077396325,6.9902,2643.8,2643.3,0.99097443]
[1727077396624,0.37833,2643.4,2643.2,0.99097443]
[1727077396818,2.8528,2643.3,2643.2,0.99097443]
[1727077397220,2.8528,2643.3,2643.1,4.56757443]
[1727077397425,2.8528,2643.3,2643.2,0.99097443]
[1727077398019,2.8528,2643.3,2643.1,4.19877443]
[1727077398334,2.8528,2643.3,2643.0,0.99097443]
[1727077398335,0.37835,2643.2,2643.0,0.99097443]
[1727077398824,2.8528,2643.3,2643.0,0.99097443]
[1727077399026,0.37835,2643.2,2643.0,0.99097443]
[1727077399222,0.37835,2643.2,2643.0,4.19877443]
[1727077399437,3.23114,2643.3,2643.0,4.19877443]
[1727077400028,3.23114,2643.3,2643.0,0.99097443]
[1727077400634,3.23113,2643.3,2643.1,0.99097443]
[1727077400827,2.8528,2643.3,2643.1,0.99097443]
[1727077401023,0.7828,2643.3,2643.2,0.37834]
[1727077401353,2.07,2643.5,2643.2,1.74181443]
[1727077401637,3.2078,2643.9,2643.4,1.48657667]
[1727077401824,3.5818,2643.9,2643.6,0.98981758]
[1727077402028,3.5818,2643.9,2643.7,1.36231758]
[1727077402236,3.5818,2643.9,2643.7,0.3725]
[1727077402533,0.374,2643.9,2643.7,41.1725]
[1727077403134,0.75225,2643.9,2643.7,41.1725]
[1727077404130,0.374,2643.9,2643.7,41.1725]
[1727077408442,0.374,2643.9,2643.7,0.3725]
[1727077408646,0.75225,2643.9,2643.7,0.3725]
[1727077408850,0.374,2643.9,2643.7,0.3725]
[1727077409237,2.07,2643.8,2643.5,44.0078]
[1727077409438,2.44826,2643.8,2643.5,44.0078]
[1727077409645,0.3797,2643.7,2643.5,44.0078]
[1727077410251,0.3797,2643.7,2643.5,44.3861]
[1727077410443,0.3797,2643.7,2643.5,44.0078]
[1727077410946,0.3797,2643.7,2643.5,44.38609]
[1727077411348,0.3797,2643.7,2643.5,44.0078]
[1727077412250,2.07,2643.8,2643.5,44.0078]
[1727077412551,0.374,2643.9,2643.5,44.0078]
[1727077413448,0.374,2643.9,2643.6,0.37828]
[1727077413751,2.4307,2644.2,2643.5,44.99761758]
[1727077414048,2.07,2644.2,2643.7,0.98981758]
[1727077414238,2.44821,2644.2,2643.8,1.11375]
[1727077414440,3.58599,2644.3,2643.9,0.37824]
[1727077414645,0.3997,2644.2,2644.0,0.37822]
[1727077414847,0.3997,2644.2,2643.9,40.8]
[1727077415043,0.77791,2644.2,2643.8,1.49655]
[1727077415440,0.77791,2644.2,2643.9,40.8]
[1727077415848,0.3997,2644.2,2643.9,40.8]
[1727077416244,0.3997,2644.2,2643.9,41.17823]
[1727077417347,3.2078,2644.3,2643.9,40.8]
[1727077417545,2.07,2644.5,2644.2,0.3782]
[1727077417740,2.07,2644.5,2644.3,0.7293]
[1727077418045,2.44816,2644.5,2644.3,0.7293]
[1727077418446,0.37817,2644.4,2644.3,0.7293]
[1727077418843,2.44816,2644.5,2644.3,0.7293]
[1727077419159,0.3996,2644.7,2644.4,0.37817]
[1727077419160,2.4696,2644.7,2644.4,0.37817]
[1727077419347,2.4696,2644.7,2644.4,0.74657]
[1727077419552,19.56728923,2645.1,2644.4,0.74657]
[1727077419553,3.94409923,2645.1,2644.5,2.07]
[1727077419744,0.3714,2645.3,2644.9,0.37809]
[1727077419941,6.01409923,2645.5,2645.0,0.74548]
[1727077419942,3.94409923,2645.5,2645.0,0.74548]
[1727077420251,0.37804,2645.3,2645.0,0.3674]
[1727077420450,2.44804,2645.3,2645.0,0.3674]
[1727077420746,0.37806,2645.2,2645.0,0.3674]
[1727077420948,2.07,2645.1,2645.0,0.3674]
[1727077424352,2.07,2645.1,2644.8,3.2078]
[1727077424656,2.449,2645.1,2644.8,3.2078]
[1727077426754,5.2778,2645.4,2644.8,3.2078]
[1727077426955,5.2778,2645.4,2644.9,0.7506]
[1727077426956,0.3714,2645.3,2644.9,0.7506]
[1727077427546,0.3714,2645.3,2644.9,0.3725]
[1727077427762,0.3714,2645.3,2644.9,0.75059]
[1727077427964,0.3714,2645.3,2645.1,0.37807]
[1727077428153,0.3714,2645.3,2645.2,3.2078]
[1727077429855,0.3714,2645.3,2645.1,0.3728]
[1727077430049,0.3714,2645.3,2645.2,3.2078]
[1727077430357,0.3714,2645.3,2644.9,0.3725]
[1727077431362,0.74945,2645.3,2644.9,0.3725]
[1727077432557,0.37806,2645.2,2644.9,0.3725]
[1727077432958,0.74945,2645.3,2644.9,0.3725]
[1727077433157,0.3714,2645.3,2644.9,0.7506]
[1727077433351,0.3714,2645.3,2645.0,0.37808]
[1727077433565,0.3714,2645.3,2644.9,0.75059]
[1727077434065,0.3715,2645.4,2645.1,3.58587]
[1727077434357,0.37802,2645.5,2645.2,0.3938]
[1727077434558,2.07,2645.6,2645.2,0.3938]
[1727077434757,0.37803,2645.4,2645.3,0.3751]
[1727077434954,0.37802,2645.5,2645.3,0.3751]
[1727077437057,2.07,2645.6,2645.3,0.3751]
[1727077437261,0.7611,2645.7,2645.3,0.75314]
[1727077437761,0.7611,2645.7,2645.4,0.37803]
[1727077438363,3.5686,2646.1,2645.5,0.37801]
[1727077438563,0.37796,2645.9,2645.5,0.75481]
[1727077438961,0.37796,2645.9,2645.5,0.37801]
[1727077439465,2.8367,2646.0,2645.4,3.2078]
[1727077439770,0.37798,2645.8,2645.3,0.75314]
[1727077440363,0.37799,2645.7,2645.3,0.75314]
[1727077440563,0.37799,2645.7,2645.3,0.3751]
[1727077440865,0.76461,2645.6,2645.3,0.3751]
[1727077441165,0.74702,2645.5,2645.3,0.3751]
[1727077441872,0.37804,2645.3,2645.1,3.2078]
[1727077442067,0.4001,2645.2,2645.1,3.2078]
[1727077442264,0.369,2645.5,2645.1,3.58586]
[1727077442569,0.7691,2645.5,2645.1,3.58586]
[1727077442769,1.14712,2645.5,2645.2,0.3772]
[1727077443374,0.7691,2645.5,2645.1,3.2078]
[1727077443563,1.14712,2645.5,2645.1,3.2078]
[1727077443762,0.7691,2645.5,2645.1,3.2078]
[1727077444574,1.14712,2645.5,2645.1,3.2078]
[1727077445581,0.7691,2645.5,2645.1,3.2078]
[1727077445876,5.845,2645.9,2645.2,0.75765]
[1727077446273,0.37799,2645.7,2645.3,0.3844]
[1727077446780,4.15297,2645.9,2645.4,3.58582]
[1727077446972,0.3948,2645.8,2645.4,3.58582]
[1727077447174,0.77277,2645.8,2645.4,3.58582]
[1727077449475,2.07,2645.7,2645.0,44.0078]
[1727077449678,0.37804,2645.4,2645.1,0.3815]
[1727077449876,0.3843,2645.3,2645.1,0.3815]
[1727077450082,0.21470722,2645.3,2645.1,0.3815]
[1727077457191,0.59275722,2645.3,2645.1,0.3815]
[1727077457488,0.37806,2645.2,2645.1,0.3815]
[1727077457689,0.59275722,2645.3,2645.1,0.3815]
[1727077457889,0.21470722,2645.3,2645.0,44.0078]
[1727077458089,0.21470722,2645.3,2644.9,0.3655]
[1727077458090,0.37809,2645.0,2644.9,0.3655]
[1727077458585,0.37809,2645.0,2644.9,41.1655]
[1727077458888,0.37808,2645.1,2644.9,41.1655]
[1727077459187,0.37808,2645.1,2644.9,0.3655]
[1727077460088,2.28470722,2645.3,2644.9,0.7436]
[1727077460089,0.37807,2645.2,2644.9,0.7436]
[1727077460291,0.37807,2645.2,2645.0,3.2078]
[1727077460487,0.37807,2645.2,2644.9,0.3655]
[1727077461484,0.37807,2645.2,2645.0,3.2078]
[1727077462190,0.21470722,2645.3,2644.9,1.35531758]
[1727077462686,0.37807,2645.2,2645.0,0.98981758]
[1727077462882,0.37807,2645.2,2645.0,4.19761758]
[1727077463081,0.37807,2645.2,2645.0,0.98981758]
[1727077463682,0.37807,2645.2,2645.0,4.58701758]
[1727077463884,0.37807,2645.2,2645.0,1.37921758]
[1727077464089,3.608,2645.6,2645.1,2.68492472]
[1727077464286,0.37802,2645.5,2645.2,0.98981758]
[1727077464486,0.37802,2645.5,2645.2,1.36531758]
[1727077464689,0.37803,2645.4,2645.2,1.36531758]
[1727077465190,0.37803,2645.4,2645.3,0.98981758]
[1727077465594,0.37803,2645.5,2645.3,0.98981758]
[1727077465995,0.37803,2645.5,2645.4,0.38]
[1727077467699,0.4002,2645.6,2645.3,0.98981758]
[1727077467700,0.37803,2645.4,2645.3,0.98981758]
[1727077471190,5.6534,2645.7,2645.3,0.98981758]
[1727077471400,0.37802,2645.5,2645.3,0.98981758]
[1727077474800,0.37801,2645.5,2645.4,0.98981758]
[1727077475199,0.37801,2645.5,2645.3,0.98981758]
[1727077475596,0.37801,2645.5,2645.4,0.98981758]
[1727077476103,2.819,2645.7,2645.4,3.18285864]
[1727077476104,0.3756,2645.7,2645.4,3.18285864]
[1727077476296,0.3756,2645.7,2645.6,0.99109774]
[1727077476693,0.3756,2645.7,2645.6,1.75099774]
[1727077476890,0.3756,2645.7,2645.6,3.06910711]
[1727077477098,0.3756,2645.7,2645.6,1.75099774]
[1727077477292,0.37798,2645.8,2645.6,3.06909919]
[1727077477497,0.37798,2645.8,2645.6,1.75099774]
[1727077478197,0.37799,2645.7,2645.6,1.75099774]
[1727077478398,0.37798,2645.8,2645.6,1.75099774]
[1727077480494,0.37798,2645.8,2645.6,4.95879774]
[1727077480694,8.45579758,2646.2,2645.6,4.95879774]
[1727077480695,3.94409923,2646.2,2645.7,5.93785085]
[1727077480899,0.3618,2646.6,2646.2,0.37791]
[1727077481094,0.3618,2646.6,2646.3,1.76405321]
[1727077481293,0.3618,2646.6,2646.4,0.99065321]
[1727077481502,0.3618,2646.6,2646.3,2.25950393]
[1727077481503,0.73966,2646.6,2646.3,1.76405321]
[1727077481809,3.2078,2647.2,2646.5,3.06065321]
[1727077482103,0.37782,2646.9,2646.6,0.98978597]
[1727077482311,0.7249,2647.1,2646.6,0.98978597]
[1727077482496,0.7249,2647.1,2646.5,0.98978597]
[1727077482799,2.07,2647.0,2646.5,0.98978597]
[1727077483105,2.07,2647.0,2646.1,0.98978597]
[1727077483106,0.37789,2646.4,2646.1,0.98978597]
[1727077483297,0.3631,2646.3,2646.1,0.98978597]
[1727077483598,0.3631,2646.3,2646.1,40.8]
[1727077483994,0.741,2646.3,2646.1,40.8]
[1727077484421,0.37791,2646.2,2646.0,1.35778597]
[1727077484605,0.37791,2646.2,2646.0,0.368]
[1727077484905,0.3631,2646.3,2645.8,1.72138597]
[1727077484906,0.37794,2646.1,2645.8,0.98978597]
[1727077485097,0.37792,2646.2,2645.8,1.35688597]
[1727077486801,0.37793,2646.1,2645.8,1.35688597]
[1727077487105,0.37793,2646.1,2645.8,0.3671]
[1727077487306,0.37792,2646.2,2645.8,1.35688597]
[1727077487507,0.37792,2646.2,2645.8,0.3671]
[1727077487707,0.37793,2646.1,2645.8,0.3671]
[1727077488305,0.37792,2646.2,2645.8,0.3671]
[1727077489007,0.37793,2646.1,2645.8,0.3671]
[1727077489395,0.37792,2646.2,2645.8,0.3671]
[1727077489700,0.37793,2646.1,2645.8,1.35688597]
[1727077491408,0.37793,2646.1,2645.9,3.2078]
[1727077491708,0.37792,2646.2,2645.9,3.2078]
[1727077491910,0.74101,2646.3,2645.9,3.2078]
[1727077492299,3.94409923,2646.7,2646.0,2.07]
[1727077492499,0.77307,2646.6,2646.1,0.37792]
[1727077492706,0.77307,2646.6,2646.1,1.36770597]
[1727077492908,0.77307,2646.6,2646.2,0.7835]
[1727077494110,0.3952,2646.6,2646.2,0.7835]
[1727077494698,0.37789,2646.4,2646.2,0.7835]
[1727077495702,0.3779,2646.3,2646.2,0.7835]
[1727077496807,0.37787,2646.5,2646.2,0.7835]
[1727077497632,0.3952,2646.6,2646.2,0.7835]
[1727077497808,0.77307,2646.6,2646.2,0.7835]
[1727077498402,0.37785,2646.7,2646.3,0.3779]
[1727077498605,0.37785,2646.7,2646.2,3.23141]
[1727077498806,0.37786,2646.6,2646.2,2.8535]
[1727077499500,0.37786,2646.6,2646.2,0.7835]
[1727077499703,0.3756,2646.5,2646.2,0.7835]
[1727077501816,0.37786,2646.6,2646.2,0.7835]
[1727077503117,0.3818,2646.7,2646.3,3.58569]
[1727077503322,0.3818,2646.7,2646.3,3.2078]
[1727077503510,0.37786,2646.6,2646.3,3.2078]
[1727077504719,0.3818,2646.7,2646.3,3.2078]
[1727077504921,0.37786,2646.6,2646.3,3.2078]
[1727077506316,0.3818,2646.7,2646.3,3.2078]
[1727077507415,0.37786,2646.6,2646.3,3.2078]
[1727077509019,0.3818,2646.7,2646.3,3.2078]
[1727077509020,0.37787,2646.5,2646.3,3.2078]
[1727077509216,0.37786,2646.6,2646.3,3.2078]
[1727077509622,0.37787,2646.5,2646.2,0.7835]
[1727077509916,2.4518,2646.7,2646.2,0.7835]
[1727077510116,2.4518,2646.7,2645.9,4.69390393]
[1727077510117,0.3904,2646.4,2645.9,3.2078]
[1727077510320,0.37796,2645.9,2645.7,0.745]
[1727077510521,0.37795,2646.0,2645.7,0.745]
[1727077510820,0.37794,2646.0,2645.7,0.745]
[1727077511216,0.37793,2646.1,2645.7,0.745]
[1727077511411,2.8387,2646.3,2645.7,0.745]
[1727077511616,0.94482,2646.2,2645.7,0.745]
[1727077511812,0.94483,2646.1,2645.7,0.745]
[1727077512018,0.94486,2646.0,2645.5,3.2078]
[1727077512226,0.378,2645.6,2645.5,3.2078]
[1727077512414,0.37802,2645.5,2645.3,0.7488]
[1727077512816,0.37801,2645.6,2645.3,0.7488]
[1727077513130,1.13518,2645.8,2645.3,0.7488]
[1727077513326,1.13518,2645.8,2645.3,1.12684]
[1727077513527,0.3996,2645.9,2645.3,1.12684]
[1727077513528,0.37796,2645.9,2645.4,5.65583]
[1727077514219,0.37796,2645.9,2645.4,5.2778]
[1727077515920,0.37797,2645.8,2645.4,5.2778]
[1727077517426,0.3619,2646.0,2645.5,1.36779597]
[1727077517427,0.73985,2646.0,2645.5,1.36779597]
[1727077517638,0.73985,2646.0,2645.6,0.7455]
[1727077517923,0.73985,2646.0,2645.6,0.3675]
[1727077518318,0.73985,2646.0,2645.7,0.3638]
[1727077518519,0.3619,2646.0,2645.8,0.3663]
[1727077520021,0.3619,2646.0,2645.8,3.5741]
[1727077520229,0.3619,2646.0,2645.8,0.3663]
[1727077520445,0.37794,2646.1,2645.8,0.3663]